[Event "Grandmaster Tournament Blitz"]
[Site "Biel/Bienne, Switzerland"]
[Date "2019.07.27"]
[Round "5.2"]
[White "Abdusattorov, Nodirbek"]
[Black "Cori, Jorge"]
[Result "0-1"]
[ECO "C11"]
[WhiteElo "2550"]
[BlackElo "2558"]
[PlyCount "124"]
[EventDate "2019.??.??"]
[EventType "blitz"]
[TimeControl "3+2"]
[WhiteClock "0:00:07"]
[BlackClock "0:00:17"]

1. e4 {[%emt 0:00:00]} e6 {[%emt 0:00:00]} 2. d4 {[%emt 0:00:00]} d5 {[%emt 0:
00:00]} 3. Nc3 {[%emt 0:00:00]} Nf6 {[%emt 0:00:00]} 4. e5 {[%emt 0:00:00]}
Nfd7 {[%emt 0:00:00]} 5. f4 {[%emt 0:00:00]} c5 {[%emt 0:00:00]} 6. Nf3 Nc6 7.
Be3 {[%emt 0:00:00]} Be7 {[%emt 0:00:00]} 8. Qd2 {[%emt 0:00:00]} Rb8 {[%emt 0:
00:00]} 9. dxc5 {[%emt 0:00:00]} Nxc5 {[%emt 0:00:00]} 10. Nd4 {[%emt 0:00:00]}
O-O {[%emt 0:00:00]} 11. Bd3 {[%emt 0:00:00]} Nxd3+ {[%emt 0:00:00]} 12. cxd3 {
[%emt 0:00:00]} f6 {[%emt 0:00:00]} 13. O-O {[%emt 0:00:00]} fxe5 {[%emt 0:00:
00]} 14. fxe5 {[%emt 0:00:00]} Nxd4 {[%emt 0:00:00]} 15. Bxd4 {[%emt 0:00:00]}
a6 {[%emt 0:00:00]} 16. a3 {[%emt 0:00:00]} Bd7 {[%emt 0:00:00]} 17. Rxf8+ {
[%emt 0:00:00]} Qxf8 {[%emt 0:00:00]} 18. Rf1 {[%emt 0:00:00]} Qe8 {[%emt 0:00:
00]} 19. Ne2 {[%emt 0:00:00]} Rc8 {[%emt 0:00:00]} 20. Ng3 {[%emt 0:00:00]} Bb5
{[%emt 0:00:00]} 21. Ne2 {[%emt 0:00:00]} h6 {[%emt 0:00:00]} 22. Be3 {[%emt 0:
00:00]} Kh7 {[%emt 0:00:00]} 23. Nd4 {[%emt 0:00:00]} Bd7 {[%emt 0:00:00]} 24.
Ne2 {[%emt 0:00:00]} Qh5 {[%emt 0:00:00]} 25. d4 {[%emt 0:00:00]} Qg6 {[%emt 0:
00:00]} 26. Nf4 {[%emt 0:00:00]} Qe4 {[%emt 0:00:00]} 27. Rc1 {[%emt 0:00:00]}
Rxc1+ {[%emt 0:00:00]} 28. Qxc1 {[%emt 0:00:00]} Bg5 {[%emt 0:00:00]} 29. Qd2 {
[%emt 0:00:08]} Bb5 {[%emt 0:00:00]} 30. Kf2 {[%emt 0:00:09]} Qb1 {[%emt 0:00:
00]} 31. Qc1 {[%emt 0:00:01]} Qf5 {[%emt 0:00:02]} 32. Kg1 {[%emt 0:00:09]} Qe4
{[%emt 0:00:03]} 33. Qd2 {[%emt 0:00:06]} Bc4 {[%emt 0:00:18]} 34. g3 {[%emt 0:
00:05]} Bxf4 {[%emt 0:00:15]} 35. Bxf4 {[%emt 0:00:04]} Qf3 {[%emt 0:00:12]}
36. Qe1 {[%emt 0:00:09]} Kg6 {[%emt 0:00:04]} 37. h4 {[%emt 0:00:06]} Kf5 {
[%emt 0:00:02]} 38. Qf2 {[%emt 0:00:01]} Kg4 {[%emt 0:00:02]} 39. Qxf3+ {
[%emt 0:00:09]} Kxf3 {[%emt 0:00:01]} 40. h5 {[%emt 0:00:04]} Bb5 {[%emt 0:00:
02]} 41. Bd2 {[%emt 0:00:03]} Be8 {[%emt 0:00:21]} 42. Bb4 {[%emt 0:00:00]}
Bxh5 {[%emt 0:00:01]} 43. Bf8 {[%emt 0:00:01]} Bg6 {[%emt 0:00:01]} 44. Bxg7 {
[%emt 0:00:01]} h5 {[%emt 0:00:01]} 45. Bf8 {[%emt 0:00:17]} Kxg3 {[%emt 0:00:
01]} 46. Bb4 {[%emt 0:00:01]} Kf3 {[%emt 0:00:02]} 47. Kh2 {[%emt 0:00:03]} Bf5
{[%emt 0:00:02]} 48. a4 {[%emt 0:00:01]} Ke3 {[%emt 0:00:10]} 49. Bc5 {[%emt 0:
00:01]} a5 {[%emt 0:00:02]} 50. Bb6 {[%emt 0:00:05]} Bc2 {[%emt 0:00:02]} 51.
Bxa5 {[%emt 0:00:02]} Kxd4 {[%emt 0:00:00]} 52. Kg3 {[%emt 0:00:03]} Kxe5 {
[%emt 0:00:01]} 53. Bc7+ {[%emt 0:00:01]} Ke4 {[%emt 0:00:01]} 54. a5 {[%emt 0:
00:01]} d4 {[%emt 0:00:01]} 55. b4 {[%emt 0:00:02]} Ba4 {[%emt 0:00:01]} 56.
Bf4 {[%emt 0:00:03]} e5 {[%emt 0:00:01]} 57. Bh6 {[%emt 0:00:00]} Kd3 {[%emt 0:
00:01]} 58. Bg7 {[%emt 0:00:04]} e4 {[%emt 0:00:01]} 59. Kf2 {[%emt 0:00:00]}
e3+ {[%emt 0:00:01]} 60. Ke1 {[%emt 0:00:02]} h4 {[%emt 0:00:01]} 61. Bf6 {
[%emt 0:00:01]} h3 62. Be5 Ke4 {[%emt 0:00:02]} 0-1

[Event "Grandmaster Tournament Blitz"]
[Site "Biel/Bienne, Switzerland"]
[Date "2019.07.27"]
[Round "5.3"]
[White "Maghsoodloo, Parham"]
[Black "Bogner, Sebastian"]
[Result "0-1"]
[ECO "A13"]
[WhiteElo "2719"]
[BlackElo "2584"]
[PlyCount "92"]
[EventDate "2019.??.??"]
[EventType "blitz"]
[TimeControl "3+2"]
[WhiteClock "0:00:10"]
[BlackClock "0:00:28"]

1. Nf3 {[%emt 0:00:00]} d5 {[%emt 0:00:00]} 2. g3 {[%emt 0:00:00]} Nf6 {
[%emt 0:00:00]} 3. Bg2 {[%emt 0:00:00]} e6 {[%emt 0:00:00]} 4. O-O {[%emt 0:00:
00]} c5 {[%emt 0:00:00]} 5. c4 {[%emt 0:00:00]} d4 {[%emt 0:00:00]} 6. e3 {
[%emt 0:00:00]} Nc6 {[%emt 0:00:00]} 7. exd4 {[%emt 0:00:00]} cxd4 {[%emt 0:00:
00]} 8. d3 {[%emt 0:00:00]} Bd6 {[%emt 0:00:00]} 9. Re1 {[%emt 0:00:00]} O-O {
[%emt 0:00:00]} 10. b3 {[%emt 0:00:00]} h6 {[%emt 0:00:00]} 11. Ba3 {[%emt 0:
00:00]} a5 {[%emt 0:00:00]} 12. Bxd6 {[%emt 0:00:00]} Qxd6 {[%emt 0:00:00]} 13.
Nbd2 {[%emt 0:00:00]} e5 {[%emt 0:00:00]} 14. a3 {[%emt 0:00:00]} Bf5 {[%emt 0:
00:00]} 15. Qc2 {[%emt 0:00:00]} Nd7 {[%emt 0:00:00]} 16. Ne4 {[%emt 0:00:00]}
Qe7 {[%emt 0:00:00]} 17. h3 {[%emt 0:00:00]} Bh7 {[%emt 0:00:00]} 18. g4 {
[%emt 0:00:00]} f5 {[%emt 0:00:00]} 19. gxf5 {[%emt 0:00:00]} Bxf5 {[%emt 0:00:
06]} 20. Qe2 {[%emt 0:00:14]} Rf7 {[%emt 0:00:43]} 21. Nfd2 {[%emt 0:00:00]}
Raf8 22. Qh5 {[%emt 0:00:00]} Bh7 23. Rac1 {[%emt 0:00:47]} Qxa3 {[%emt 0:00:
00]} 24. c5 {[%emt 0:00:00]} Kh8 25. Qd1 {[%emt 0:00:59]} Qb4 {[%emt 0:00:07]}
26. Rc4 {[%emt 0:00:12]} Qa3 {[%emt 0:00:00]} 27. Ra4 {[%emt 0:00:00]} Qb2 {
[%emt 0:00:00]} 28. Nc4 {[%emt 0:00:14]} Bxe4 {[%emt 0:00:00]} 29. Nxb2 {
[%emt 0:00:00]} Bxg2 {[%emt 0:00:00]} 30. Kxg2 {[%emt 0:00:00]} Rxf2+ {[%emt 0:
00:00]} 31. Kg3 {[%emt 0:00:00]} Rxb2 {[%emt 0:00:00]} 32. Rf1 {[%emt 0:00:00]}
Nf6 {[%emt 0:00:00]} 33. Ra1 {[%emt 0:00:00]} e4 {[%emt 0:00:00]} 34. Rb1 {
[%emt 0:00:00]} Ra2 {[%emt 0:00:00]} 35. Ra1 {[%emt 0:00:00]} Rb2 {[%emt 0:00:
00]} 36. h4 {[%emt 0:00:00]} Ne5 {[%emt 0:00:00]} 37. Rb1 {[%emt 0:00:00]} Ra2
{[%emt 0:00:00]} 38. Ra1 {[%emt 0:00:00]} Rb2 {[%emt 0:00:00]} 39. Rb1 Ra2 40.
Kh3 {[%emt 0:00:00]} Nxd3 {[%emt 0:00:00]} 41. b4 {[%emt 0:00:00]} axb4 {
[%emt 0:00:01]} 42. Qb3 {[%emt 0:00:00]} Nf2+ {[%emt 0:00:03]} 43. Rxf2 {
[%emt 0:00:00]} Rxf2 {[%emt 0:00:01]} 44. Qxb4 {[%emt 0:00:00]} Nd5 {[%emt 0:
00:09]} 45. Qxd4 {[%emt 0:00:00]} R8f3+ {[%emt 0:00:01]} 46. Kg4 {[%emt 0:00:
00]} Nf6+ {[%emt 0:00:01]} 0-1

[Event "Grandmaster Tournament Blitz"]
[Site "Biel/Bienne, Switzerland"]
[Date "2019.07.27"]
[Round "5.4"]
[White "Vidit, Santosh Gujrathi"]
[Black "Leko, Peter"]
[Result "1-0"]
[ECO "E05"]
[WhiteElo "2694"]
[BlackElo "2743"]
[PlyCount "125"]
[EventDate "2019.??.??"]
[EventType "blitz"]
[TimeControl "3+2"]
[WhiteClock "0:00:11"]
[BlackClock "0:00:20"]

1. d4 {[%emt 0:00:00]} Nf6 {[%emt 0:00:00]} 2. c4 {[%emt 0:00:00]} e6 {[%emt 0:
00:00]} 3. g3 {[%emt 0:00:00]} d5 {[%emt 0:00:00]} 4. Bg2 {[%emt 0:00:00]} Be7
{[%emt 0:00:00]} 5. Nf3 {[%emt 0:00:00]} O-O {[%emt 0:00:00]} 6. O-O {[%emt 0:
00:00]} dxc4 {[%emt 0:00:00]} 7. Qc2 {[%emt 0:00:00]} a6 {[%emt 0:00:00]} 8.
Qxc4 {[%emt 0:00:00]} b5 {[%emt 0:00:00]} 9. Qc2 {[%emt 0:00:00]} Bb7 {[%emt 0:
00:00]} 10. Bd2 {[%emt 0:00:00]} Bd6 {[%emt 0:00:00]} 11. Re1 {[%emt 0:00:00]}
Be4 {[%emt 0:00:00]} 12. Qc1 {[%emt 0:00:00]} Bb7 {[%emt 0:00:00]} 13. Bg5 {
[%emt 0:00:00]} Nbd7 {[%emt 0:00:00]} 14. e4 {[%emt 0:00:00]} Be7 {[%emt 0:00:
00]} 15. Nbd2 {[%emt 0:00:00]} c5 {[%emt 0:00:00]} 16. e5 {[%emt 0:00:00]} Nd5
{[%emt 0:00:00]} 17. Bxe7 {[%emt 0:00:00]} Qxe7 {[%emt 0:00:00]} 18. Ne4 {
[%emt 0:00:00]} cxd4 {[%emt 0:00:00]} 19. Qd2 {[%emt 0:00:00]} Rfd8 {[%emt 0:
00:00]} 20. Rac1 {[%emt 0:00:00]} Qb4 {[%emt 0:00:00]} 21. Nd6 {[%emt 0:00:00]}
Qxd2 {[%emt 0:00:00]} 22. Nxd2 {[%emt 0:00:00]} Rab8 {[%emt 0:00:00]} 23. Nxb7
{[%emt 0:00:00]} Rxb7 {[%emt 0:00:00]} 24. Bxd5 {[%emt 0:00:00]} exd5 {[%emt 0:
00:00]} 25. Nb3 {[%emt 0:00:00]} d3 {[%emt 0:00:00]} 26. Rcd1 {[%emt 0:00:00]}
Rc7 {[%emt 0:00:00]} 27. Rxd3 {[%emt 0:00:00]} Nf8 {[%emt 0:00:08]} 28. Re2 {
[%emt 0:00:11]} Ne6 {[%emt 0:00:04]} 29. f4 {[%emt 0:00:01]} g6 {[%emt 0:00:01]
} 30. Kf2 {[%emt 0:00:07]} h5 {[%emt 0:00:01]} 31. Red2 {[%emt 0:00:07]} d4 {
[%emt 0:00:10]} 32. Kf3 {[%emt 0:00:11]} Kg7 {[%emt 0:00:02]} 33. h3 {[%emt 0:
00:06]} Rc4 {[%emt 0:00:09]} 34. g4 {[%emt 0:00:06]} hxg4+ {[%emt 0:00:01]} 35.
hxg4 {[%emt 0:00:01]} f6 {[%emt 0:00:04]} 36. exf6+ {[%emt 0:00:09]} Kxf6 {
[%emt 0:00:01]} 37. Re2 {[%emt 0:00:02]} Nc5 {[%emt 0:00:10]} 38. g5+ {[%emt 0:
00:03]} Kf7 {[%emt 0:00:01]} 39. Nxc5 {[%emt 0:00:03]} Rxc5 {[%emt 0:00:01]}
40. Red2 {[%emt 0:00:03]} Ke6 {[%emt 0:00:17]} 41. Rxd4 {[%emt 0:00:03]} Rxd4 {
[%emt 0:00:01]} 42. Rxd4 {[%emt 0:00:01]} Rc2 {[%emt 0:00:01]} 43. Re4+ {
[%emt 0:00:03]} Kf7 {[%emt 0:00:01]} 44. Re2 {[%emt 0:00:02]} Rc4 {[%emt 0:00:
02]} 45. Kg4 {[%emt 0:00:03]} Rc1 {[%emt 0:00:01]} 46. Rh2 {[%emt 0:00:04]} Ke6
{[%emt 0:00:04]} 47. Re2+ {[%emt 0:00:02]} Kf7 {[%emt 0:00:00]} 48. a3 {
[%emt 0:00:01]} Rg1+ {[%emt 0:00:03]} 49. Kf3 {[%emt 0:00:01]} Rb1 {[%emt 0:00:
02]} 50. Rc2 {[%emt 0:00:02]} a5 {[%emt 0:00:04]} 51. Rc7+ {[%emt 0:00:03]} Kf8
{[%emt 0:00:02]} 52. Rc2 {[%emt 0:00:05]} b4 {[%emt 0:00:02]} 53. axb4 {
[%emt 0:00:02]} axb4 {[%emt 0:00:01]} 54. Ke4 {[%emt 0:00:00]} b3 {[%emt 0:00:
02]} 55. Re2 {[%emt 0:00:06]} Rd1 {[%emt 0:00:04]} 56. Re3 {[%emt 0:00:01]} Rc1
{[%emt 0:00:05]} 57. Rxb3 {[%emt 0:00:01]} Rc4+ {[%emt 0:00:01]} 58. Ke5 {
[%emt 0:00:03]} Rc5+ {[%emt 0:00:01]} 59. Kd6 {[%emt 0:00:04]} Rc4 {[%emt 0:00:
02]} 60. Ke5 {[%emt 0:00:01]} Rc5+ {[%emt 0:00:01]} 61. Ke6 {[%emt 0:00:01]}
Rc6+ {[%emt 0:00:01]} 62. Kd5 {[%emt 0:00:01]} Rc2 {[%emt 0:00:01]} 63. Rb7 {
[%emt 0:00:03]} 1-0

[Event "Grandmaster Tournament Blitz"]
[Site "Biel/Bienne, Switzerland"]
[Date "2019.07.27"]
[Round "6.1"]
[White "Shankland, Sam"]
[Black "Leko, Peter"]
[Result "1/2-1/2"]
[ECO "D42"]
[WhiteElo "2660"]
[BlackElo "2743"]
[PlyCount "65"]
[EventDate "2019.??.??"]
[EventType "blitz"]
[TimeControl "3+2"]
[WhiteClock "0:00:40"]
[BlackClock "0:00:14"]

1. Nf3 {[%emt 0:00:00]} Nf6 {[%emt 0:00:00]} 2. c4 {[%emt 0:00:00]} c5 {
[%emt 0:00:00]} 3. Nc3 {[%emt 0:00:00]} Nc6 {[%emt 0:00:00]} 4. e3 {[%emt 0:00:
00]} e6 {[%emt 0:00:00]} 5. d4 {[%emt 0:00:00]} d5 {[%emt 0:00:00]} 6. cxd5 {
[%emt 0:00:00]} Nxd5 {[%emt 0:00:00]} 7. Bd3 {[%emt 0:00:00]} Be7 {[%emt 0:00:
00]} 8. O-O {[%emt 0:00:00]} O-O {[%emt 0:00:00]} 9. Qe2 {[%emt 0:00:00]} cxd4
{[%emt 0:00:00]} 10. exd4 {[%emt 0:00:00]} Bd7 {[%emt 0:00:00]} 11. Rd1 {
[%emt 0:00:00]} Rc8 {[%emt 0:00:00]} 12. a3 {[%emt 0:00:03]} Re8 {[%emt 0:00:
00]} 13. h4 {[%emt 0:00:00]} Nxc3 {[%emt 0:00:00]} 14. bxc3 {[%emt 0:00:00]} g6
{[%emt 0:00:00]} 15. Bg5 {[%emt 0:00:00]} Na5 {[%emt 0:00:00]} 16. c4 {[%emt 0:
00:00]} Bc6 {[%emt 0:00:00]} 17. Bxe7 {[%emt 0:00:00]} Qxe7 {[%emt 0:00:00]}
18. h5 {[%emt 0:00:00]} Bxf3 {[%emt 0:00:00]} 19. Qxf3 {[%emt 0:00:00]} Nxc4 {
[%emt 0:00:00]} 20. Bxc4 {[%emt 0:00:00]} Rxc4 {[%emt 0:00:00]} 21. d5 {
[%emt 0:00:00]} exd5 {[%emt 0:00:00]} 22. Rxd5 {[%emt 0:00:00]} b6 {[%emt 0:00:
00]} 23. Rad1 {[%emt 0:00:00]} Re4 {[%emt 0:00:22]} 24. g3 {[%emt 0:00:00]}
Re1+ {[%emt 0:00:03]} 25. Rxe1 {[%emt 0:00:18]} Qxe1+ {[%emt 0:00:01]} 26. Kg2
{[%emt 0:00:00]} Qe4 {[%emt 0:00:09]} 27. Qxe4 {[%emt 0:00:03]} Rxe4 {[%emt 0:
00:01]} 28. h6 {[%emt 0:00:00]} Kf8 {[%emt 0:00:09]} 29. Rd8+ {[%emt 0:00:07]}
Re8 {[%emt 0:00:06]} 30. Rd7 {[%emt 0:00:01]} Re7 {[%emt 0:00:03]} 31. Rd8+ {
[%emt 0:00:00]} Re8 {[%emt 0:00:02]} 32. Rd7 {[%emt 0:00:01]} Re7 {[%emt 0:00:
02]} 33. Rd8+ {[%emt 0:00:01]} 1/2-1/2

[Event "Grandmaster Tournament Blitz"]
[Site "Biel/Bienne, Switzerland"]
[Date "2019.07.27"]
[Round "6.2"]
[White "Bogner, Sebastian"]
[Black "Vidit, Santosh Gujrathi"]
[Result "0-1"]
[ECO "C54"]
[WhiteElo "2584"]
[BlackElo "2694"]
[PlyCount "136"]
[EventDate "2019.??.??"]
[EventType "blitz"]
[TimeControl "3+2"]
[BlackClock "0:00:12"]

1. e4 {[%emt 0:00:00]} e5 {[%emt 0:00:00]} 2. Nf3 {[%emt 0:00:00]} Nc6 {
[%emt 0:00:00]} 3. Bc4 {[%emt 0:00:00]} Nf6 {[%emt 0:00:00]} 4. d3 {[%emt 0:00:
00]} Bc5 {[%emt 0:00:00]} 5. O-O {[%emt 0:00:00]} O-O {[%emt 0:00:00]} 6. Nbd2
{[%emt 0:00:00]} d6 {[%emt 0:00:00]} 7. c3 {[%emt 0:00:00]} a5 {[%emt 0:00:00]}
8. a4 {[%emt 0:00:00]} Be6 {[%emt 0:00:00]} 9. h3 {[%emt 0:00:00]} h6 {[%emt 0:
00:00]} 10. Re1 {[%emt 0:00:00]} Bxc4 {[%emt 0:00:00]} 11. Nxc4 {[%emt 0:00:00]
} Re8 {[%emt 0:00:00]} 12. Be3 {[%emt 0:00:00]} Bxe3 {[%emt 0:00:00]} 13. Nxe3
{[%emt 0:00:00]} d5 {[%emt 0:00:00]} 14. Qb3 {[%emt 0:00:00]} dxe4 {[%emt 0:00:
00]} 15. dxe4 {[%emt 0:00:00]} Qc8 {[%emt 0:00:00]} 16. Nd5 {[%emt 0:00:00]}
Nd7 {[%emt 0:00:00]} 17. Rad1 {[%emt 0:00:00]} Ne7 {[%emt 0:00:00]} 18. Qc4 {
[%emt 0:00:00]} Nxd5 {[%emt 0:00:00]} 19. exd5 {[%emt 0:00:00]} Nb6 {[%emt 0:
00:00]} 20. Qb3 {[%emt 0:00:00]} Qd7 {[%emt 0:00:00]} 21. d6 {[%emt 0:00:00]}
Qxa4 {[%emt 0:00:00]} 22. Qxa4 {[%emt 0:00:03]} Nxa4 {[%emt 0:00:00]} 23. dxc7
{[%emt 0:00:09]} Rac8 {[%emt 0:00:00]} 24. Rxe5 {[%emt 0:00:14]} Rxe5 {[%emt 0:
00:00]} 25. Nxe5 {[%emt 0:00:01]} Rxc7 {[%emt 0:00:00]} 26. Rd8+ {[%emt 0:00:
08]} Kh7 {[%emt 0:00:00]} 27. Nd3 {[%emt 0:00:01]} Nc5 {[%emt 0:00:13]} 28.
Nxc5 {[%emt 0:00:02]} Rxc5 {[%emt 0:00:00]} 29. Kf1 {[%emt 0:00:05]} Rb5 {
[%emt 0:00:09]} 30. Rd2 {[%emt 0:00:01]} Kg6 {[%emt 0:00:04]} 31. Ke2 {[%emt 0:
00:02]} Kf6 {[%emt 0:00:01]} 32. Kd1 {[%emt 0:00:02]} Ke6 {[%emt 0:00:01]} 33.
Kc2 {[%emt 0:00:01]} Rd5 {[%emt 0:00:06]} 34. Re2+ {[%emt 0:00:03]} Kd6 {
[%emt 0:00:07]} 35. Re4 {[%emt 0:00:04]} b5 {[%emt 0:00:04]} 36. b3 {[%emt 0:
00:04]} Rf5 {[%emt 0:00:04]} 37. f3 {[%emt 0:00:03]} Re5 {[%emt 0:00:06]} 38.
Rd4+ {[%emt 0:00:03]} Kc6 {[%emt 0:00:01]} 39. Rd2 {[%emt 0:00:06]} g5 {
[%emt 0:00:10]} 40. Rf2 {[%emt 0:00:01]} h5 {[%emt 0:00:08]} 41. g4 {[%emt 0:
00:03]} h4 {[%emt 0:00:05]} 42. f4 gxf4 {[%emt 0:00:03]} 43. Rxf4 {[%emt 0:00:
01]} Re3 {[%emt 0:00:01]} 44. Rxf7 {[%emt 0:00:04]} Rxh3 {[%emt 0:00:01]} 45.
Rh7 {[%emt 0:00:03]} a4 {[%emt 0:00:03]} 46. bxa4 {[%emt 0:00:01]} bxa4 {
[%emt 0:00:01]} 47. Kb2 {[%emt 0:00:04]} Kd5 {[%emt 0:00:02]} 48. g5 {[%emt 0:
00:02]} Ke6 {[%emt 0:00:01]} 49. g6 {[%emt 0:00:03]} Kf6 {[%emt 0:00:03]} 50.
g7 {[%emt 0:00:06]} Kf7 {[%emt 0:00:01]} 51. c4 {[%emt 0:00:03]} Kg8 {[%emt 0:
00:01]} 52. Rh5 {[%emt 0:00:03]} a3+ {[%emt 0:00:02]} 53. Ka2 {[%emt 0:00:00]}
Kxg7 {[%emt 0:00:01]} 54. c5 {[%emt 0:00:04]} Kg6 {[%emt 0:00:01]} 55. Rh8 {
[%emt 0:00:01]} Kg5 {[%emt 0:00:03]} 56. c6 {[%emt 0:00:04]} Rc3 {[%emt 0:00:
01]} 57. Rg8+ {[%emt 0:00:03]} Kf4 {[%emt 0:00:01]} 58. Rf8+ {[%emt 0:00:01]}
Kg3 {[%emt 0:00:01]} 59. Rg8+ {[%emt 0:00:01]} Kh2 {[%emt 0:00:02]} 60. Rg6 {
[%emt 0:00:01]} h3 {[%emt 0:00:03]} 61. Ka1 {[%emt 0:00:04]} Rc2 {[%emt 0:00:
02]} 62. Kb1 {[%emt 0:00:04]} a2+ {[%emt 0:00:02]} 63. Ka1 {[%emt 0:00:00]} Kh1
{[%emt 0:00:03]} 64. Rg3 {[%emt 0:00:04]} h2 {[%emt 0:00:06]} 65. Rg6 {[%emt 0:
00:01]} Rg2 {[%emt 0:00:02]} 66. Rh6 {[%emt 0:00:03]} Kg1 {[%emt 0:00:02]} 67.
c7 {[%emt 0:00:05]} Rg8 {[%emt 0:00:02]} 68. Rg6+ {[%emt 0:00:02]} Rxg6 {
[%emt 0:00:02]} 0-1

[Event "Grandmaster Tournament Blitz"]
[Site "Biel/Bienne, Switzerland"]
[Date "2019.07.27"]
[Round "6.3"]
[White "Cori, Jorge"]
[Black "Maghsoodloo, Parham"]
[Result "0-1"]
[ECO "A85"]
[WhiteElo "2558"]
[BlackElo "2719"]
[PlyCount "134"]
[EventDate "2019.??.??"]
[EventType "blitz"]
[TimeControl "3+2"]
[WhiteClock "0:00:06"]
[BlackClock "0:00:46"]

1. d4 {[%emt 0:00:00]} f5 {[%emt 0:00:00]} 2. Nf3 {[%emt 0:00:00]} Nf6 {
[%emt 0:00:00]} 3. c4 {[%emt 0:00:00]} g6 {[%emt 0:00:00]} 4. Nc3 {[%emt 0:00:
00]} Bg7 {[%emt 0:00:00]} 5. e3 {[%emt 0:00:00]} O-O {[%emt 0:00:00]} 6. Be2 {
[%emt 0:00:00]} b6 {[%emt 0:00:00]} 7. O-O {[%emt 0:00:00]} Bb7 {[%emt 0:00:00]
} 8. b4 {[%emt 0:00:00]} e6 {[%emt 0:00:00]} 9. a4 {[%emt 0:00:00]} a5 {
[%emt 0:00:00]} 10. b5 {[%emt 0:00:00]} d6 {[%emt 0:00:00]} 11. Ba3 {[%emt 0:
00:00]} Nbd7 {[%emt 0:00:00]} 12. Rc1 {[%emt 0:00:00]} Qe7 {[%emt 0:00:00]} 13.
Nd2 {[%emt 0:00:00]} g5 {[%emt 0:00:00]} 14. Nb3 {[%emt 0:00:00]} f4 {[%emt 0:
00:00]} 15. exf4 {[%emt 0:00:00]} gxf4 {[%emt 0:00:00]} 16. Bf3 {[%emt 0:00:00]
} Bxf3 {[%emt 0:00:00]} 17. Qxf3 {[%emt 0:00:00]} e5 {[%emt 0:00:00]} 18. Rfe1
{[%emt 0:00:00]} Qf7 {[%emt 0:00:00]} 19. d5 {[%emt 0:00:00]} Kh8 {[%emt 0:00:
00]} 20. Nd2 {[%emt 0:00:00]} Rg8 {[%emt 0:00:00]} 21. Kh1 {[%emt 0:00:00]} Bh6
{[%emt 0:00:00]} 22. Nce4 {[%emt 0:00:00]} Rg6 {[%emt 0:00:00]} 23. Rg1 {
[%emt 0:00:00]} Rag8 {[%emt 0:00:00]} 24. g3 {[%emt 0:00:00]} Qe8 {[%emt 0:00:
00]} 25. Rce1 {[%emt 0:00:00]} Qc8 {[%emt 0:00:00]} 26. Bc1 {[%emt 0:00:14]}
fxg3 {[%emt 0:00:00]} 27. fxg3 {[%emt 0:00:06]} Bxd2 {[%emt 0:00:00]} 28. Bxd2
{[%emt 0:00:03]} Nxe4 {[%emt 0:00:00]} 29. Rxe4 {[%emt 0:00:12]} Rf6 {[%emt 0:
00:00]} 30. Qh5 {[%emt 0:00:01]} Nc5 {[%emt 0:00:00]} 31. Rh4 {[%emt 0:00:01]}
Qf5 {[%emt 0:00:00]} 32. Qxf5 {[%emt 0:00:10]} Rxf5 {[%emt 0:00:00]} 33. g4 {
[%emt 0:00:00]} Rf3 {[%emt 0:00:00]} 34. g5 {[%emt 0:00:02]} Rg6 {[%emt 0:00:
00]} 35. Kg2 {[%emt 0:00:03]} Rf7 {[%emt 0:00:00]} 36. Rh3 {[%emt 0:00:06]}
Nxa4 {[%emt 0:00:00]} 37. Rf3 {[%emt 0:00:00]} Rgg7 {[%emt 0:00:00]} 38. Rgf1 {
[%emt 0:00:01]} Kg8 {[%emt 0:00:00]} 39. h4 {[%emt 0:00:03]} Nb2 {[%emt 0:00:
00]} 40. Rc3 {[%emt 0:00:04]} h5 {[%emt 0:00:08]} 41. Ra1 {[%emt 0:00:03]} e4 {
[%emt 0:00:02]} 42. Re3 {[%emt 0:00:03]} Nxc4 {[%emt 0:00:02]} 43. Re2 {
[%emt 0:00:02]} Nxd2 {[%emt 0:00:07]} 44. Rxd2 {[%emt 0:00:01]} Rf4 {[%emt 0:
00:01]} 45. Kh3 {[%emt 0:00:04]} Rgf7 {[%emt 0:00:07]} 46. Rg2 {[%emt 0:00:03]}
Rf3+ {[%emt 0:00:01]} 47. Rg3 {[%emt 0:00:00]} Rxg3+ {[%emt 0:00:16]} 48. Kxg3
{[%emt 0:00:01]} e3 {[%emt 0:00:01]} 49. Re1 {[%emt 0:00:05]} Re7 {[%emt 0:00:
01]} 50. Kf3 {[%emt 0:00:01]} a4 {[%emt 0:00:09]} 51. Ke2 {[%emt 0:00:00]} Re4
{[%emt 0:00:04]} 52. Rc1 {[%emt 0:00:10]} a3 {[%emt 0:00:05]} 53. Rxc7 {
[%emt 0:00:05]} Ra4 {[%emt 0:00:03]} 54. Rc1 {[%emt 0:00:01]} a2 {[%emt 0:00:
01]} 55. Ra1 {[%emt 0:00:00]} Ra3 {[%emt 0:00:01]} 56. Kf3 {[%emt 0:00:03]} Kg7
{[%emt 0:00:01]} 57. Ke2 {[%emt 0:00:03]} Kg6 {[%emt 0:00:03]} 58. Kf3 {
[%emt 0:00:00]} Kf5 {[%emt 0:00:01]} 59. Ke2 {[%emt 0:00:02]} Ke5 {[%emt 0:00:
01]} 60. Kf3 {[%emt 0:00:05]} Kxd5 {[%emt 0:00:01]} 61. Ke2 {[%emt 0:00:07]}
Ke6 {[%emt 0:00:02]} 62. Kf3 {[%emt 0:00:02]} d5 {[%emt 0:00:00]} 63. Ke2 {
[%emt 0:00:01]} d4 {[%emt 0:00:01]} 64. Kf3 {[%emt 0:00:01]} Kf5 {[%emt 0:00:
03]} 65. Ke2 {[%emt 0:00:04]} Ke4 {[%emt 0:00:01]} 66. g6 {[%emt 0:00:03]} d3+
{[%emt 0:00:01]} 67. Kf1 {[%emt 0:00:00]} Ra7 {[%emt 0:00:12]} 0-1

[Event "Grandmaster Tournament Blitz"]
[Site "Biel/Bienne, Switzerland"]
[Date "2019.07.27"]
[Round "6.4"]
[White "Georgiadis, Nico"]
[Black "Abdusattorov, Nodirbek"]
[Result "0-1"]
[ECO "C41"]
[WhiteElo "2464"]
[BlackElo "2550"]
[PlyCount "72"]
[EventDate "2019.??.??"]
[EventType "blitz"]
[TimeControl "3+2"]
[WhiteClock "0:00:15"]
[BlackClock "0:01:42"]

1. d4 {[%emt 0:00:00]} d6 {[%emt 0:00:00]} 2. e4 {[%emt 0:00:00]} Nf6 {[%emt 0:
00:00]} 3. Nc3 {[%emt 0:00:00]} e5 {[%emt 0:00:00]} 4. Nf3 {[%emt 0:00:00]}
Nbd7 {[%emt 0:00:00]} 5. Bc4 {[%emt 0:00:00]} Be7 {[%emt 0:00:00]} 6. a4 {
[%emt 0:00:00]} O-O {[%emt 0:00:00]} 7. O-O {[%emt 0:00:01]} c6 8. Re1 {
[%emt 0:00:00]} a5 {[%emt 0:00:00]} 9. h3 {[%emt 0:00:00]} exd4 {[%emt 0:00:00]
} 10. Qxd4 {[%emt 0:00:00]} Qb6 {[%emt 0:00:00]} 11. Bf4 {[%emt 0:00:00]} Qxd4
{[%emt 0:00:00]} 12. Nxd4 {[%emt 0:00:00]} Ne5 {[%emt 0:00:00]} 13. Bf1 {
[%emt 0:00:00]} Re8 {[%emt 0:00:00]} 14. Rad1 {[%emt 0:00:00]} Bf8 {[%emt 0:00:
00]} 15. Bg3 {[%emt 0:00:00]} g6 {[%emt 0:00:00]} 16. f4 {[%emt 0:00:00]} Ned7
{[%emt 0:00:00]} 17. Nf3 {[%emt 0:00:00]} Nc5 {[%emt 0:00:00]} 18. e5 {[%emt 0:
00:00]} dxe5 {[%emt 0:00:00]} 19. fxe5 {[%emt 0:00:00]} Nh5 {[%emt 0:00:00]}
20. Bf2 {[%emt 0:00:00]} Be6 {[%emt 0:00:00]} 21. b3 {[%emt 0:00:00]} Rad8 {
[%emt 0:00:00]} 22. Bh4 {[%emt 0:00:00]} Rxd1 {[%emt 0:00:00]} 23. Rxd1 {
[%emt 0:00:00]} Ng7 {[%emt 0:00:00]} 24. Bf2 {[%emt 0:00:00]} Bf5 {[%emt 0:00:
00]} 25. Rd2 {[%emt 0:00:00]} Ne4 {[%emt 0:00:00]} 26. Nxe4 {[%emt 0:00:00]}
Bxe4 {[%emt 0:00:00]} 27. Rd7 {[%emt 0:00:10]} Re7 {[%emt 0:00:00]} 28. Rxe7 {
[%emt 0:00:22]} Bxe7 {[%emt 0:00:00]} 29. Ne1 {[%emt 0:00:02]} Bb4 {[%emt 0:00:
00]} 30. Nd3 {[%emt 0:00:03]} Bc3 {[%emt 0:00:00]} 31. Bb6 {[%emt 0:00:04]} Ne6
{[%emt 0:00:00]} 32. Kf2 {[%emt 0:00:05]} g5 {[%emt 0:00:00]} 33. Ke3 {[%emt 0:
00:01]} Bg6 {[%emt 0:00:00]} 34. Be2 {[%emt 0:00:06]} h5 {[%emt 0:00:00]} 35.
Bd1 {[%emt 0:00:08]} Kf8 {[%emt 0:00:00]} 36. Nc5 {[%emt 0:00:03]} Bd4+ {
[%emt 0:00:00]} 0-1